[Event "Titled Tuesday Blitz November 15 Early 2022"]
[White "Goltsev, Dmitry"]
[Black "Santos Flores, Alberto"]
[WhiteFideId "24176710"]
[BlackFideId "3601234"]
[WhiteElo "2289"]
[BlackElo "2235"]
[Result "1/2-1/2"]
[Round "03"]
[TimeControl "180+1"]
[Date "2022.11.16"]
[WhiteClock "0:01:31"]
[BlackClock "0:00:32"]

1. e4 {[%clk 0:02:59]}  c5 {[%clk 0:02:58]} 2. Nf3 {[%clk 0:02:59]}  Nc6 {[%clk 0:02:58]} 3. d4 {[%clk 0:03:00]}  cxd4 {[%clk 0:02:59]} 4. Nxd4 {[%clk 0:03:01]}  g6 {[%clk 0:02:59]} 5. Nc3 {[%clk 0:03:01]}  Bg7 {[%clk 0:02:59]} 6. Be3 {[%clk 0:03:01]}  Nf6 {[%clk 0:02:59]} 7. Be2 {[%clk 0:03:01]}  O-O {[%clk 0:02:59]} 8. O-O {[%clk 0:03:01]}  d6 {[%clk 0:02:59]} 9. f4 {[%clk 0:03:01]}  Nxd4 {[%clk 0:02:58]} 10. Bxd4 {[%clk 0:03:01]}  Qa5 {[%clk 0:02:56]} 11. Bf3 {[%clk 0:03:00]}  Be6 {[%clk 0:02:48]} 12. Qd2 {[%clk 0:02:56]}  Rfd8 {[%clk 0:02:31]} 13. Rad1 {[%clk 0:02:54]}  Rac8 {[%clk 0:02:31]} 14. Rfe1 {[%clk 0:02:52]}  b5 {[%clk 0:02:26]} 15. a3 {[%clk 0:02:49]}  b4 {[%clk 0:02:13]} 16. axb4 {[%clk 0:02:50]}  Qxb4 {[%clk 0:02:13]} 17. b3 {[%clk 0:02:44]}  a5 {[%clk 0:01:56]} 18. Na4 {[%clk 0:02:42]}  Qxd2 {[%clk 0:01:43]} 19. Rxd2 {[%clk 0:02:43]}  Nd7 {[%clk 0:01:37]} 20. Bxg7 {[%clk 0:02:40]}  Kxg7 {[%clk 0:01:38]} 21. Red1 {[%clk 0:02:36]}  Nc5 {[%clk 0:01:32]} 22. Nxc5 {[%clk 0:02:29]}  Rxc5 {[%clk 0:01:32]} 23. e5 {[%clk 0:02:29]}  Rdc8 {[%clk 0:01:27]} 24. exd6 {[%clk 0:02:29]}  exd6 {[%clk 0:01:28]} 25. c4 {[%clk 0:02:28]}  a4 {[%clk 0:01:28]} 26. bxa4 {[%clk 0:02:29]}  Rxc4 {[%clk 0:01:27]} 27. a5 {[%clk 0:02:30]}  Ra4 {[%clk 0:01:23]} 28. a6 {[%clk 0:02:30]}  d5 {[%clk 0:01:15]} 29. Be2 {[%clk 0:02:26]}  Ra8 {[%clk 0:01:10]} 30. Rd4 {[%clk 0:02:20]}  Ra2 {[%clk 0:01:06]} 31. Bf1 {[%clk 0:02:19]}  Bc8 {[%clk 0:01:00]} 32. R1d2 {[%clk 0:02:11]}  Rxd2 {[%clk 0:00:57]} 33. Rxd2 {[%clk 0:02:12]}  Bxa6 {[%clk 0:00:57]} 34. Rxd5 {[%clk 0:02:12]}  Bxf1 {[%clk 0:00:57]} 35. Kxf1 {[%clk 0:02:13]}  Ra2 {[%clk 0:00:57]} 36. Rd7 {[%clk 0:02:12]}  h5 {[%clk 0:00:56]} 37. h3 {[%clk 0:02:12]}  Kf6 {[%clk 0:00:54]} 38. Rb7 {[%clk 0:02:12]}  Ke6 {[%clk 0:00:53]} 39. Kg1 {[%clk 0:02:12]}  Kf6 {[%clk 0:00:52]} 40. Kh2 {[%clk 0:02:12]}  Ra3 {[%clk 0:00:52]} 41. g4 {[%clk 0:02:12]}  hxg4 {[%clk 0:00:51]} 42. hxg4 {[%clk 0:02:13]}  Kg7 {[%clk 0:00:49]} 43. Kg2 {[%clk 0:02:11]}  Rc3 {[%clk 0:00:49]} 44. Kf2 {[%clk 0:02:11]}  Ra3 {[%clk 0:00:49]} 45. Rc7 {[%clk 0:02:11]}  Kf6 {[%clk 0:00:48]} 46. Ke2 {[%clk 0:02:10]}  Rb3 {[%clk 0:00:47]} 47. Rd7 {[%clk 0:02:10]}  Ra3 {[%clk 0:00:46]} 48. Rd3 {[%clk 0:02:10]}  Ra1 {[%clk 0:00:43]} 49. Ke3 {[%clk 0:02:06]}  Re1+ {[%clk 0:00:42]} 50. Kf3 {[%clk 0:02:04]}  Ra1 {[%clk 0:00:41]} 51. Ke4 {[%clk 0:02:05]}  Rg1 {[%clk 0:00:37]} 52. g5+ {[%clk 0:02:05]}  Kg7 {[%clk 0:00:38]} 53. Re3 {[%clk 0:01:58]}  Ra1 {[%clk 0:00:38]} 54. Rd3 {[%clk 0:01:51]}  Ra4+ {[%clk 0:00:38]} 55. Rd4 {[%clk 0:01:51]}  Ra5 {[%clk 0:00:38]} 56. Rd5 {[%clk 0:01:51]}  Ra4+ {[%clk 0:00:39]} 57. Ke5 {[%clk 0:01:51]}  Ra1 {[%clk 0:00:38]} 58. Rd4 {[%clk 0:01:47]}  Ra5+ {[%clk 0:00:37]} 59. Kd6 {[%clk 0:01:48]}  Ra1 {[%clk 0:00:38]} 60. Re4 {[%clk 0:01:47]}  Ra6+ {[%clk 0:00:37]} 61. Kc7 {[%clk 0:01:47]}  Ra7+ {[%clk 0:00:37]} 62. Kb6 {[%clk 0:01:47]}  Ra1 {[%clk 0:00:38]} 63. Kc6 {[%clk 0:01:46]}  Ra6+ {[%clk 0:00:37]} 64. Kb5 {[%clk 0:01:44]}  Ra1 {[%clk 0:00:38]} 65. Re5 {[%clk 0:01:43]}  Rf1 {[%clk 0:00:37]} 66. Re4 {[%clk 0:01:44]}  Ra1 {[%clk 0:00:38]} 67. Kc5 {[%clk 0:01:44]}  Rb1 {[%clk 0:00:37]} 68. Rb4 {[%clk 0:01:44]}  Ra1 {[%clk 0:00:36]} 69. Kd5 {[%clk 0:01:44]}  Re1 {[%clk 0:00:32]} 70. Re4 {[%clk 0:01:44]}  Ra1 {[%clk 0:00:31]} 71. Re5 {[%clk 0:01:43]}  Ra5+ {[%clk 0:00:31]} 72. Ke4 {[%clk 0:01:43]}  Ra4+ {[%clk 0:00:32]} 73. Kf3 {[%clk 0:01:43]}  Ra3+ {[%clk 0:00:32]} 74. Kg4 {[%clk 0:01:43]}  Ra1 {[%clk 0:00:33]} 75. Re3 {[%clk 0:01:41]}  Rg1+ {[%clk 0:00:32]} 76. Rg3 {[%clk 0:01:41]}  Ra1 {[%clk 0:00:33]} 77. Rf3 {[%clk 0:01:40]}  Ra4 {[%clk 0:00:32]} 78. Kg3 {[%clk 0:01:40]}  Rb4 {[%clk 0:00:32]} 79. f5 {[%clk 0:01:41]}  gxf5 {[%clk 0:00:32]} 80. Rxf5 {[%clk 0:01:41]}  Kg6 {[%clk 0:00:33]} 81. Ra5 {[%clk 0:01:41]}  Rc4 {[%clk 0:00:32]} 82. Kf3 {[%clk 0:01:35]}  Rb4 {[%clk 0:00:32]} 83. Kg3 {[%clk 0:01:32]}  Rc4 {[%clk 0:00:32]} 84. Rb5 {[%clk 0:01:30]}  Ra4 {[%clk 0:00:32]} 85. Rc5 {[%clk 0:01:29]}  Rb4 {[%clk 0:00:32]} 86. Kf3 {[%clk 0:01:29]}  Ra4 {[%clk 0:00:32]} 87. Rb5 {[%clk 0:01:30]}  Rc4 {[%clk 0:00:32]} 88. Kg3 {[%clk 0:01:30]}  Ra4 {[%clk 0:00:32]} 89. Kh3 {[%clk 0:01:30]}  Rc4 {[%clk 0:00:32]} 90. Ra5 {[%clk 0:01:31]}  Rb4 {[%clk 0:00:32]} 91. Kg3 {[%clk 0:01:31]} 1/2-1/2


[Site "https://www.chess.com"]

[Event "Titled Tuesday Blitz November 15 Early 2022"]
[White "Goltseva, Ekaterina"]
[Black "Copeland, Samuel"]
[WhiteFideId "24173770"]
[BlackFideId "2007347"]
[WhiteElo "2200"]
[BlackElo "2323"]
[Result "1-0"]
[Round "03"]
[TimeControl "180+1"]
[Date "2022.11.16"]
[WhiteClock "0:00:06"]
[BlackClock "0:00:03"]

1. Nf3 {[%clk 0:03:00]}  f5 {[%clk 0:02:52]} 2. d4 {[%clk 0:02:57]}  Nf6 {[%clk 0:02:51]} 3. g3 {[%clk 0:02:52]}  g6 {[%clk 0:02:51]} 4. Bg2 {[%clk 0:02:51]}  Bg7 {[%clk 0:02:51]} 5. O-O {[%clk 0:02:51]}  O-O {[%clk 0:02:52]} 6. b3 {[%clk 0:02:49]}  d6 {[%clk 0:02:52]} 7. Bb2 {[%clk 0:02:49]}  a5 {[%clk 0:02:49]} 8. c4 {[%clk 0:02:45]}  Qe8 {[%clk 0:02:46]} 9. Nc3 {[%clk 0:02:44]}  Bd7 {[%clk 0:02:45]} 10. Re1 {[%clk 0:02:30]}  a4 {[%clk 0:02:40]} 11. bxa4 {[%clk 0:02:21]}  Bxa4 {[%clk 0:02:33]} 12. Qc1 {[%clk 0:01:53]}  Bc6 {[%clk 0:02:29]} 13. d5 {[%clk 0:01:40]}  Bd7 {[%clk 0:02:28]} 14. e4 {[%clk 0:01:36]}  fxe4 {[%clk 0:02:27]} 15. Nxe4 {[%clk 0:01:35]}  Na6 {[%clk 0:02:16]} 16. Nfg5 {[%clk 0:01:29]}  Nxe4 {[%clk 0:01:56]} 17. Nxe4 {[%clk 0:01:24]}  Qf7 {[%clk 0:01:40]} 18. f4 {[%clk 0:01:15]}  Bxb2 {[%clk 0:00:55]} 19. Qxb2 {[%clk 0:01:13]}  b6 {[%clk 0:00:54]} 20. Qe2 {[%clk 0:01:04]}  Rae8 {[%clk 0:00:52]} 21. Ng5 {[%clk 0:00:50]}  Qg7 {[%clk 0:00:47]} 22. Ne6 {[%clk 0:00:43]}  Bxe6 {[%clk 0:00:45]} 23. dxe6 {[%clk 0:00:42]}  Nc5 {[%clk 0:00:25]} 24. Bc6 {[%clk 0:00:41]}  Rb8 {[%clk 0:00:25]} 25. a4 {[%clk 0:00:40]}  Qd4+ {[%clk 0:00:20]} 26. Kh1 {[%clk 0:00:36]}  Kg7 {[%clk 0:00:19]} 27. Rad1 {[%clk 0:00:32]}  Qc3 {[%clk 0:00:17]} 28. Rc1 {[%clk 0:00:29]}  Qd4 {[%clk 0:00:17]} 29. Red1 {[%clk 0:00:27]}  Qf6 {[%clk 0:00:17]} 30. Re1 {[%clk 0:00:21]}  Qd4 {[%clk 0:00:17]} 31. Qe3 {[%clk 0:00:17]}  Qxe3 {[%clk 0:00:17]} 32. Rxe3 {[%clk 0:00:18]}  Rf6 {[%clk 0:00:17]} 33. Rce1 {[%clk 0:00:16]}  h6 {[%clk 0:00:15]} 34. Kg2 {[%clk 0:00:16]}  Rbf8 {[%clk 0:00:13]} 35. h4 {[%clk 0:00:16]}  g5 {[%clk 0:00:12]} 36. hxg5 {[%clk 0:00:14]}  hxg5 {[%clk 0:00:12]} 37. fxg5 {[%clk 0:00:14]}  Rf2+ {[%clk 0:00:12]} 38. Kg1 {[%clk 0:00:14]}  Rc2 {[%clk 0:00:10]} 39. Bd5 {[%clk 0:00:12]}  Rff2 {[%clk 0:00:09]} 40. Rf1 {[%clk 0:00:11]}  Rxf1+ {[%clk 0:00:07]} 41. Kxf1 {[%clk 0:00:12]}  Nxa4 {[%clk 0:00:01]} 42. Rf3 {[%clk 0:00:12]}  Nc5 {[%clk 0:00:01]} 43. Rf7+ {[%clk 0:00:12]}  Kg6 {[%clk 0:00:02]} 44. Rxe7 {[%clk 0:00:13]}  Kxg5 {[%clk 0:00:02]} 45. Rxc7 {[%clk 0:00:11]}  Nd3 {[%clk 0:00:02]} 46. e7 {[%clk 0:00:08]}  Rf2+ {[%clk 0:00:02]} 47. Kg1 {[%clk 0:00:08]}  Re2 {[%clk 0:00:03]} 48. Bf7 {[%clk 0:00:07]}  Nc5 {[%clk 0:00:03]} 49. e8=Q {[%clk 0:00:06]} 1-0


[Site "https://www.chess.com"]

[Event "Titled Tuesday Blitz November 15 Early 2022"]
[White "Gorodetzky, David"]
[Black "Rohith Krishna S"]
[WhiteFideId "2813416"]
[BlackFideId "46617051"]
[WhiteElo "2921"]
[BlackElo "2711"]
[Result "1/2-1/2"]
[Round "03"]
[TimeControl "180+1"]
[Date "2022.11.16"]
[WhiteClock "0:00:13"]
[BlackClock "0:00:22"]

1. d4 {[%clk 0:02:42]}  Nf6 {[%clk 0:02:59]} 2. Nf3 {[%clk 0:02:36]}  g6 {[%clk 0:02:58]} 3. g3 {[%clk 0:02:36]}  Bg7 {[%clk 0:02:58]} 4. Bg2 {[%clk 0:02:37]}  O-O {[%clk 0:02:59]} 5. O-O {[%clk 0:02:38]}  d5 {[%clk 0:02:59]} 6. a4 {[%clk 0:02:36]}  a5 {[%clk 0:02:56]} 7. b3 {[%clk 0:02:35]}  Bf5 {[%clk 0:02:42]} 8. Ba3 {[%clk 0:02:33]}  Re8 {[%clk 0:02:41]} 9. e3 {[%clk 0:02:33]}  Nbd7 {[%clk 0:02:40]} 10. c4 {[%clk 0:02:32]}  e6 {[%clk 0:02:32]} 11. Nc3 {[%clk 0:02:31]}  Ne4 {[%clk 0:02:30]} 12. Rc1 {[%clk 0:02:26]}  Nxc3 {[%clk 0:02:30]} 13. Rxc3 {[%clk 0:02:27]}  Be4 {[%clk 0:02:30]} 14. Qd2 {[%clk 0:02:18]}  c6 {[%clk 0:02:21]} 15. Rd1 {[%clk 0:02:12]}  e5 {[%clk 0:02:05]} 16. cxd5 {[%clk 0:02:10]}  Bxd5 {[%clk 0:01:38]} 17. dxe5 {[%clk 0:02:05]}  Nxe5 {[%clk 0:01:37]} 18. Nxe5 {[%clk 0:02:02]}  Bxg2 {[%clk 0:01:35]} 19. Rd3 {[%clk 0:01:48]}  Bd5 {[%clk 0:01:34]} 20. e4 {[%clk 0:01:42]}  Rxe5 {[%clk 0:01:24]} 21. exd5 {[%clk 0:01:43]}  Rxd5 {[%clk 0:01:24]} 22. Rxd5 {[%clk 0:01:42]}  Qxd5 {[%clk 0:01:25]} 23. Qxd5 {[%clk 0:01:43]}  cxd5 {[%clk 0:01:26]} 24. Rxd5 {[%clk 0:01:43]}  Bf8 {[%clk 0:01:17]} 25. Bc1 {[%clk 0:01:31]}  Rc8 {[%clk 0:01:13]} 26. Be3 {[%clk 0:01:25]}  Bb4 {[%clk 0:01:08]} 27. Rd7 {[%clk 0:01:18]}  Rb8 {[%clk 0:00:27]} 28. Bf4 {[%clk 0:01:13]}  Re8 {[%clk 0:00:27]} 29. Rxb7 {[%clk 0:00:54]}  Re1+ {[%clk 0:00:27]} 30. Kg2 {[%clk 0:00:55]}  Rb1 {[%clk 0:00:27]} 31. Bh6 {[%clk 0:00:50]}  f5 {[%clk 0:00:25]} 32. Rg7+ {[%clk 0:00:49]}  Kh8 {[%clk 0:00:25]} 33. Ra7 {[%clk 0:00:18]}  Kg8 {[%clk 0:00:26]} 34. Rg7+ {[%clk 0:00:18]}  Kh8 {[%clk 0:00:26]} 35. Rd7 {[%clk 0:00:15]}  Kg8 {[%clk 0:00:26]} 36. Rd3 {[%clk 0:00:16]}  Kf7 {[%clk 0:00:25]} 37. h4 {[%clk 0:00:14]}  Ke6 {[%clk 0:00:26]} 38. Bf4 {[%clk 0:00:15]}  Rb2 {[%clk 0:00:19]} 39. Kf3 {[%clk 0:00:14]}  Bc5 {[%clk 0:00:19]} 40. Be3 {[%clk 0:00:13]}  Bb4 {[%clk 0:00:19]} 41. h5 {[%clk 0:00:11]}  Rc2 {[%clk 0:00:19]} 42. hxg6 {[%clk 0:00:11]}  hxg6 {[%clk 0:00:19]} 43. Kf4 {[%clk 0:00:12]}  Bd6+ {[%clk 0:00:19]} 44. Kg5 {[%clk 0:00:11]}  Bb4 {[%clk 0:00:13]} 45. Kxg6 {[%clk 0:00:11]}  Be1 {[%clk 0:00:14]} 46. Rd8 {[%clk 0:00:02]}  Bxf2 {[%clk 0:00:14]} 47. Bf4 {[%clk 0:00:02]}  Rc3 {[%clk 0:00:11]} 48. Re8+ {[%clk 0:00:03]}  Kd7 {[%clk 0:00:11]} 49. Re5 {[%clk 0:00:03]}  Bxg3 {[%clk 0:00:12]} 50. Bxg3 {[%clk 0:00:03]}  Rxg3+ {[%clk 0:00:13]} 51. Kxf5 {[%clk 0:00:04]}  Rxb3 {[%clk 0:00:13]} 52. Rxa5 {[%clk 0:00:05]}  Kc6 {[%clk 0:00:14]} 53. Ke5 {[%clk 0:00:05]}  Kb6 {[%clk 0:00:14]} 54. Ra8 {[%clk 0:00:05]}  Kb7 {[%clk 0:00:14]} 55. Ra5 {[%clk 0:00:04]}  Kb6 {[%clk 0:00:14]} 56. Ra8 {[%clk 0:00:04]}  Kb7 {[%clk 0:00:14]} 57. Rd8 {[%clk 0:00:04]}  Rb4 {[%clk 0:00:14]} 58. Rd4 {[%clk 0:00:04]}  Rxd4 {[%clk 0:00:14]} 59. Kxd4 {[%clk 0:00:04]}  Ka6 {[%clk 0:00:15]} 60. Kc4 {[%clk 0:00:05]}  Ka5 {[%clk 0:00:16]} 61. Kb3 {[%clk 0:00:06]}  Ka6 {[%clk 0:00:16]} 62. Kb4 {[%clk 0:00:07]}  Kb6 {[%clk 0:00:17]} 63. a5+ {[%clk 0:00:08]}  Ka6 {[%clk 0:00:18]} 64. Ka4 {[%clk 0:00:08]}  Ka7 {[%clk 0:00:19]} 65. Kb5 {[%clk 0:00:09]}  Kb7 {[%clk 0:00:19]} 66. a6+ {[%clk 0:00:10]}  Ka7 {[%clk 0:00:20]} 67. Ka5 {[%clk 0:00:11]}  Ka8 {[%clk 0:00:20]} 68. Kb6 {[%clk 0:00:11]}  Kb8 {[%clk 0:00:21]} 69. a7+ {[%clk 0:00:12]}  Ka8 {[%clk 0:00:22]} 70. Ka6 {[%clk 0:00:13]} 1/2-1/2


[Site "https://www.chess.com"]

[Event "Titled Tuesday Blitz November 15 Early 2022"]
[White "Grandelius, Nils"]
[Black "Di Nicolantonio, Lucas"]
[WhiteFideId "1710400"]
[BlackFideId "680460"]
[WhiteElo "2861"]
[BlackElo "2627"]
[Result "1-0"]
[Round "03"]
[TimeControl "180+1"]
[Date "2022.11.16"]
[WhiteClock "0:00:28"]
[BlackClock "0:00:05"]

1. c4 {[%clk 0:03:00]}  g6 {[%clk 0:02:59]} 2. g3 {[%clk 0:03:00]}  Bg7 {[%clk 0:02:59]} 3. Bg2 {[%clk 0:03:01]}  d6 {[%clk 0:02:58]} 4. Nc3 {[%clk 0:03:01]}  f5 {[%clk 0:02:56]} 5. d3 {[%clk 0:02:58]}  Nf6 {[%clk 0:02:57]} 6. e4 {[%clk 0:02:58]}  Nc6 {[%clk 0:02:56]} 7. Nge2 {[%clk 0:02:58]}  O-O {[%clk 0:02:54]} 8. O-O {[%clk 0:02:57]}  e5 {[%clk 0:02:52]} 9. Nd5 {[%clk 0:02:57]}  h6 {[%clk 0:02:38]} 10. exf5 {[%clk 0:02:52]}  Bxf5 {[%clk 0:02:36]} 11. h3 {[%clk 0:02:48]}  Qd7 {[%clk 0:02:30]} 12. g4 {[%clk 0:02:49]}  Be6 {[%clk 0:02:30]} 13. Ng3 {[%clk 0:02:46]}  Nd4 {[%clk 0:02:27]} 14. Be3 {[%clk 0:02:39]}  Nxd5 {[%clk 0:02:07]} 15. cxd5 {[%clk 0:02:36]}  Bf7 {[%clk 0:02:06]} 16. Qd2 {[%clk 0:02:26]}  Kh7 {[%clk 0:01:37]} 17. Rac1 {[%clk 0:02:25]}  Rac8 {[%clk 0:01:34]} 18. Bxd4 {[%clk 0:02:11]}  exd4 {[%clk 0:01:34]} 19. Qb4 {[%clk 0:02:10]}  c5 {[%clk 0:01:28]} 20. dxc6 {[%clk 0:02:09]}  bxc6 {[%clk 0:01:29]} 21. Ne4 {[%clk 0:01:53]}  c5 {[%clk 0:01:23]} 22. Qa5 {[%clk 0:01:45]}  Bd5 {[%clk 0:01:06]} 23. b3 {[%clk 0:01:36]}  Ba8 {[%clk 0:00:53]} 24. Rce1 {[%clk 0:01:27]}  Rf4 {[%clk 0:00:49]} 25. Qa6 {[%clk 0:01:19]}  Be5 {[%clk 0:00:37]} 26. Nxc5 {[%clk 0:01:01]}  Rxc5 {[%clk 0:00:29]} 27. Bxa8 {[%clk 0:01:01]}  Rxg4+ {[%clk 0:00:27]} 28. hxg4 {[%clk 0:01:02]}  Qxg4+ {[%clk 0:00:27]} 29. Bg2 {[%clk 0:01:02]}  h5 {[%clk 0:00:12]} 30. Qxa7+ {[%clk 0:00:49]}  Kh6 {[%clk 0:00:11]} 31. Re4 {[%clk 0:00:38]}  Qf5 {[%clk 0:00:06]} 32. Qe7 {[%clk 0:00:29]}  Bf6 {[%clk 0:00:05]} 33. Qf8+ {[%clk 0:00:28]}  Kh7 {[%clk 0:00:05]} 1-0


[Site "https://www.chess.com"]

[Event "Titled Tuesday Blitz November 15 Early 2022"]
[White "Grigorov, Grigor"]
[Black "Petrova, Irina"]
[WhiteFideId "2907313"]
[BlackFideId "14124122"]
[WhiteElo "2510"]
[BlackElo "2023"]
[Result "1-0"]
[Round "03"]
[TimeControl "180+1"]
[Date "2022.11.16"]
[WhiteClock "0:02:00"]
[BlackClock "0:01:04"]

1. d4 {[%clk 0:03:00]}  d6 {[%clk 0:03:00]} 2. e4 {[%clk 0:03:00]}  Nf6 {[%clk 0:03:00]} 3. Bd3 {[%clk 0:03:00]}  e5 {[%clk 0:03:01]} 4. c3 {[%clk 0:02:58]}  d5 {[%clk 0:02:58]} 5. dxe5 {[%clk 0:02:56]}  Nxe4 {[%clk 0:02:58]} 6. Nf3 {[%clk 0:02:56]}  Nc6 {[%clk 0:02:56]} 7. O-O {[%clk 0:02:51]}  Nc5 {[%clk 0:02:54]} 8. Bb5 {[%clk 0:02:48]}  Bg4 {[%clk 0:02:52]} 9. Nbd2 {[%clk 0:02:46]}  Be7 {[%clk 0:02:52]} 10. Re1 {[%clk 0:02:44]}  O-O {[%clk 0:02:50]} 11. h3 {[%clk 0:02:42]}  Bh5 {[%clk 0:02:44]} 12. Nf1 {[%clk 0:02:37]}  Ne6 {[%clk 0:02:33]} 13. Ng3 {[%clk 0:02:34]}  Bg6 {[%clk 0:02:33]} 14. Bd3 {[%clk 0:02:31]}  Nc5 {[%clk 0:02:21]} 15. Bxg6 {[%clk 0:02:27]}  hxg6 {[%clk 0:02:22]} 16. Nd4 {[%clk 0:02:25]}  Nxd4 {[%clk 0:02:20]} 17. cxd4 {[%clk 0:02:26]}  Ne6 {[%clk 0:02:20]} 18. f4 {[%clk 0:02:26]}  Bh4 {[%clk 0:02:19]} 19. Kh2 {[%clk 0:02:25]}  c6 {[%clk 0:02:14]} 20. Be3 {[%clk 0:02:24]}  g5 {[%clk 0:02:09]} 21. f5 {[%clk 0:02:22]}  Nf4 {[%clk 0:02:08]} 22. Qg4 {[%clk 0:02:21]}  Bxg3+ {[%clk 0:02:05]} 23. Qxg3 {[%clk 0:02:18]}  f6 {[%clk 0:02:00]} 24. Bxf4 {[%clk 0:02:16]}  gxf4 {[%clk 0:02:00]} 25. Qxf4 {[%clk 0:02:16]}  fxe5 {[%clk 0:02:00]} 26. dxe5 {[%clk 0:02:16]}  Qb6 {[%clk 0:01:58]} 27. Re2 {[%clk 0:02:15]}  Rae8 {[%clk 0:01:57]} 28. Rae1 {[%clk 0:02:15]}  Qc7 {[%clk 0:01:42]} 29. g4 {[%clk 0:02:11]}  c5 {[%clk 0:01:38]} 30. Kg3 {[%clk 0:02:11]}  d4 {[%clk 0:01:38]} 31. e6 {[%clk 0:02:10]}  Qc6 {[%clk 0:01:30]} 32. g5 {[%clk 0:02:03]}  Qd5 {[%clk 0:01:24]} 33. f6 {[%clk 0:02:01]}  gxf6 {[%clk 0:01:13]} 34. gxf6 {[%clk 0:02:02]}  Kh8 {[%clk 0:01:08]} 35. Qh6+ {[%clk 0:02:00]}  Kg8 {[%clk 0:01:04]} 36. Qg7# {[%clk 0:02:00]} 1-0


[Site "https://www.chess.com"]

[Event "Titled Tuesday Blitz November 15 Early 2022"]
[White "Gu, Xiaobing"]
[Black "Mendonca, Mateus Nakajo"]
[WhiteFideId "8602611"]
[BlackFideId "2110954"]
[WhiteElo "2174"]
[BlackElo "2310"]
[Result "0-1"]
[Round "03"]
[TimeControl "180+1"]
[Date "2022.11.16"]
[WhiteClock "0:00:53"]
[BlackClock "0:02:20"]

1. e4 {[%clk 0:02:53]}  c5 {[%clk 0:02:58]} 2. Nf3 {[%clk 0:02:52]}  e6 {[%clk 0:02:56]} 3. g3 {[%clk 0:02:47]}  Nc6 {[%clk 0:02:55]} 4. Bg2 {[%clk 0:02:44]}  e5 {[%clk 0:02:47]} 5. O-O {[%clk 0:02:40]}  d6 {[%clk 0:02:47]} 6. Qe2 {[%clk 0:02:40]}  g6 {[%clk 0:02:44]} 7. d3 {[%clk 0:02:39]}  Bg7 {[%clk 0:02:44]} 8. c3 {[%clk 0:02:39]}  Nge7 {[%clk 0:02:43]} 9. Na3 {[%clk 0:02:38]}  O-O {[%clk 0:02:43]} 10. Nc4 {[%clk 0:02:38]}  b5 {[%clk 0:02:39]} 11. Ne3 {[%clk 0:02:38]}  Rb8 {[%clk 0:02:40]} 12. Nd5 {[%clk 0:02:35]}  Nxd5 {[%clk 0:02:38]} 13. exd5 {[%clk 0:02:35]}  Ne7 {[%clk 0:02:39]} 14. Nd2 {[%clk 0:01:09]}  Bb7 {[%clk 0:02:38]} 15. c4 {[%clk 0:01:08]}  bxc4 {[%clk 0:02:38]} 16. dxc4 {[%clk 0:01:08]}  a5 {[%clk 0:02:38]} 17. Ne4 {[%clk 0:01:04]}  Nf5 {[%clk 0:02:36]} 18. Be3 {[%clk 0:01:02]}  Ba6 {[%clk 0:02:35]} 19. Rac1 {[%clk 0:00:59]}  Qb6 {[%clk 0:02:31]} 20. b3 {[%clk 0:00:59]}  Rfc8 {[%clk 0:02:30]} 21. Bg5 {[%clk 0:00:57]}  Nd4 {[%clk 0:02:28]} 22. Qe3 {[%clk 0:00:56]}  a4 {[%clk 0:02:24]} 23. Bh6 {[%clk 0:00:53]}  Nf5 {[%clk 0:02:20]} 0-1


[Site "https://www.chess.com"]

[Event "Titled Tuesday Blitz November 15 Early 2022"]
[White "Guliev, Logman"]
[Black "Perez Gormaz, Matias"]
[WhiteFideId "13400061"]
[BlackFideId "3406342"]
[WhiteElo "2161"]
[BlackElo "2341"]
[Result "0-1"]
[Round "03"]
[TimeControl "180+1"]
[Date "2022.11.16"]
[WhiteClock "0:00:06"]
[BlackClock "0:00:18"]

1. e4 {[%clk 0:03:00]}  c5 {[%clk 0:02:59]} 2. Nf3 {[%clk 0:02:59]}  e6 {[%clk 0:02:57]} 3. d4 {[%clk 0:02:59]}  cxd4 {[%clk 0:02:58]} 4. Nxd4 {[%clk 0:02:59]}  a6 {[%clk 0:02:59]} 5. Bd3 {[%clk 0:02:59]}  Bc5 {[%clk 0:02:58]} 6. Nb3 {[%clk 0:02:59]}  Ba7 {[%clk 0:02:59]} 7. Qe2 {[%clk 0:02:59]}  Nc6 {[%clk 0:02:58]} 8. Nc3 {[%clk 0:02:58]}  Nge7 {[%clk 0:02:58]} 9. Be3 {[%clk 0:02:58]}  Bxe3 {[%clk 0:02:58]} 10. Qxe3 {[%clk 0:02:58]}  O-O {[%clk 0:02:56]} 11. f4 {[%clk 0:02:53]}  d5 {[%clk 0:02:55]} 12. exd5 {[%clk 0:02:51]}  exd5 {[%clk 0:02:53]} 13. O-O-O {[%clk 0:02:49]}  d4 {[%clk 0:02:53]} 14. Nxd4 {[%clk 0:02:07]}  Nxd4 {[%clk 0:02:50]} 15. Be4 {[%clk 0:02:07]}  Ndf5 {[%clk 0:02:29]} 16. Qc5 {[%clk 0:01:09]}  Qe8 {[%clk 0:02:27]} 17. g4 {[%clk 0:01:00]}  Nh6 {[%clk 0:01:58]} 18. g5 {[%clk 0:00:32]}  Nhf5 {[%clk 0:01:54]} 19. Rhe1 {[%clk 0:00:31]}  Be6 {[%clk 0:01:52]} 20. Bxb7 {[%clk 0:00:26]}  Rb8 {[%clk 0:01:48]} 21. Bxa6 {[%clk 0:00:26]}  Ng6 {[%clk 0:01:25]} 22. a4 {[%clk 0:00:13]}  Nxf4 {[%clk 0:01:16]} 23. Qf2 {[%clk 0:00:10]}  Ng6 {[%clk 0:01:05]} 24. Bd3 {[%clk 0:00:10]}  Qc8 {[%clk 0:01:04]} 25. Nb5 {[%clk 0:00:09]}  Nge7 {[%clk 0:00:58]} 26. h4 {[%clk 0:00:08]}  Rd8 {[%clk 0:00:56]} 27. h5 {[%clk 0:00:08]}  Nd5 {[%clk 0:00:41]} 28. g6 {[%clk 0:00:08]}  Nb4 {[%clk 0:00:18]} 29. gxf7+ {[%clk 0:00:06]}  Kxf7 {[%clk 0:00:19]} 30. Bxf5 {[%clk 0:00:05]}  Bxf5 {[%clk 0:00:18]} 31. c3 {[%clk 0:00:06]}  Na2# {[%clk 0:00:18]} 0-1


[Site "https://www.chess.com"]